Workbook

Sheet Herrtabellen 2025
A1: Herrtabellen 2025
A3: VIT | B3: Uppdaterad 2025-05-27 | M3: VIT | N3: 2025
A4: Placering | B4: Namn | E4: Antal sistor + bommade | J4: Antal omgångar | M4: Poäng | N4: Totplac.
A5: 1 | B5: Christer | F5: 0 | G5: + | H5: 0 | K5: 1 | M5: 4
A6: 2 | B6: Kalle | F6: 0 | G6: + | H6: 0 | K6: 1 | M6: 3.6
A7: 3 | B7: Melle | F7: 0 | G7: + | H7: 0 | K7: 1 | M7: 3.2
A8: 4 | B8: Clabbe | F8: 0 | G8: + | H8: 0 | K8: 1 | M8: 2.8
A9: 5 | B9: Micke | F9: 0 | G9: + | H9: 0 | K9: 1 | M9: 2.4
A10: 6 | B10: Benny | F10: 0 | G10: + | H10: 0 | K10: 1 | M10: 2
A11: 7 | B11: Mats P | F11: 0 | G11: + | H11: 0 | K11: 1 | M11: 1.6
A12: 8 | B12: Morgan | F12: 0 | G12: + | H12: 0 | K12: 1 | M12: 1.2
A13: 9 | B13: Peter Å | F13: 0 | G13: + | H13: 0 | K13: 1 | M13: 0.8
A14: 10 | B14: Magnus | F14: 0 | G14: + | H14: 0 | K14: 1 | M14: 0.4
A15: 11 | B15: Martin | F15: 0 | G15: + | H15: 0 | K15: 1 | M15: 0
A16: 12 | B16: Mats Mats | F16: 0 | G16: + | H16: 0 | K16: 1 | M16: 0
A17: 13 | B17: Myggan | F17: 0 | G17: + | H17: 0 | K17: 1 | M17: 0
A18: 14 | B18: Ove | F18: 0 | G18: + | H18: 0 | K18: 1 | M18: 0
A19: 15 | B19: Sir Conta | F19: 0 | G19: + | H19: 0 | K19: 1 | M19: 0
A20: 16 | B20: Ville | F20: 0 | G20: + | H20: 0 | K20: 1 | M20: 0
A21: Summa: | F21: =SUM(F5:F20) -> 0 | G21: = | H21: =SUM(H5:H20) -> 0 | K21: =SUM(K5:K20) -> 16 | M21: =SUM(M5:M20) -> 22
A23: VIT | B23: Omgångar (0 singelmatcher släpar, ej parmatch) | M23: VIT | N23: 2025
A24: Omgång | B24: 1 | C24: 2 | D24: 3 | E24: 4 | F24: 5 | G24: 6 | H24: 7 | I24: 8 | J24: 9 | K24: 10 | M24: Totalt | N24: Släpar
A25: Benny | B25: 2 | M25: =SUM(B25:L25) -> 2
A26: Christer | B26: 4 | M26: =SUM(B26:L26) -> 4
A27: Clabbe | B27: 2.8 | M27: 2.8
A28: Kalle | B28: 3.6 | M28: 3.6
A29: Magnus | B29: 0.4 | M29: 0.4
A30: Martin | B30: 0 | M30: 0
A31: Mats Mats | B31: 0 | M31: 0
A32: Mats P | B32: 1.6 | M32: 1.6
A33: Melle | B33: 3.2 | M33: 3.2
A34: Micke | B34: 2.4 | M34: 2.4
A35: Morgan | B35: 1.2 | M35: =SUM(B35:L35) -> 1.2
A36: Myggan | B36: 0 | M36: 0
A37: Ove | B37: 0 | M37: 0
A38: Peter Å | B38: 0.8 | M38: 0.8
A39: Sir Conta | B39: 0 | M39: 0
A40: Ville | B40: 0 | M40: 0
B41: =SUM(B25:B39) -> 22 | C41: 0 | D41: 0 | E41: 0 | F41: 0 | G41: 0 | H41: 0 | I41: 0 | J41: 0 | K41: 0 | M41: =SUM(M25:M40) -> 22
A42: Omg. klar | B42: JA | C42: NEJ | D42: NEJ | E42: NEJ | F42: NEJ | G42: NEJ | H42: NEJ | I42: NEJ | J42: NEJ | K42: NEJ
B44: = | C44: Gemensam omgång. De två bästa av tre räknas. Markeras med GULT.
B46: = | C46: Parspel (en sista)
C47: Regler parspel: Fyrboll bästboll matchspel (lagspel två och två. Varje lag väljer bästa resultatet per hål. I övrigt som Matchspel. Det lag vinner, som har fler hål upp än vad det är kvar att spela). Man spelar på sitt egna hcp och sin egen boll. 2p per spelare för det vinnande laget, 1p per spelare vid delad match. 0,5p per spelare för det lag som har bästa resultat på senast vunna hål efter 18 spelade hål.

Sheet B-Side 2025
A1: Herrtabellen 2025

Sheet Herrtabellen 2024
A1: Herrtabellen 2024 (Ny juli)
A2: RÖD | B2: Uppdaterad 2024-09-08 | R2: RÖD | S2: 2024 | U2: BLÅ | V2: Uppdaterad 2024-09-08 | AL2: BLÅ | AM2: 2024
A3: Placering | B3: Namn | J3: Antal sistor + bommade | O3: Antal omgångar | R3: Poäng | S3: Totplac. | U3: Placering | V3: Namn | AD3: Antal sistor + bommade | AI3: Antal omgångar | AL3: Poäng | AM3: Totplac.
A4: 1 | B4: MatsMats | K4: 3 | L4: + | M4: 4 | P4: 13 | R4: 28 | S4: 1 | U4: 1 | V4: Morgan | AE4: 4 | AF4: + | AG4: 3 | AJ4: 13 | AL4: 22.7 | AM4: 2
A5: 2 | B5: Martin | K5: 4 | L5: + | M5: 3 | P5: 13 | R5: 23.3 | S5: 3 | U5: 2 | V5: Myggan | AE5: 5 | AF5: + | AG5: 2 | AJ5: 13 | AL5: 22.5 | AM5: 4
A6: 3 | B6: Benny | K6: 4 | L6: + | M6: 3 | P6: 13 | R6: 22.3 | S6: 5 | U6: 3 | V6: Mats P | AE6: 3 | AF6: + | AG6: 4 | AJ6: 13 | AL6: 20.8 | AM6: 6
A7: 4 | B7: Melle | K7: 3 | L7: + | M7: 4 | P7: 13 | R7: 15.1 | S7: 8 | U7: 4 | V7: Ove | AE7: 4 | AF7: + | AG7: 3 | AJ7: 13 | AL7: 16.7 | AM7: 7
A8: 5 | B8: Ingvar | K8: 2 | L8: + | M8: 5 | P8: 13 | R8: 15 | S8: 10 | U8: 5 | V8: Peter J | AE8: 3 | AF8: + | AG8: 4 | AJ8: 13 | AL8: 15.9 | AM8: 9
A9: 6 | B9: Kalle | K9: 4 | L9: + | M9: 3 | P9: 13 | R9: 14.8 | S9: 11 | U9: 6 | V9: Micke | AE9: 4 | AF9: + | AG9: 3 | AJ9: 13 | AL9: 13.6 | AM9: 12
A10: 7 | B10: Mattias | K10: 5 | L10: + | M10: 2 | P10: 13 | R10: 8.9 | S10: 14 | U10: 7 | V10: Conta | AE10: 2 | AF10: + | AG10: 5 | AJ10: 13 | AL10: 12.5 | AM10: 13
A11: 8 | B11: Ville | K11: 3 | L11: + | M11: 4 | P11: 13 | R11: 6.5 | S11: 16 | U11: 8 | V11: Magnus | AE11: 3 | AF11: + | AG11: 4 | AJ11: 13 | AL11: 10.9 | AM11: 15
A12: Summa: | K12: =SUM(K4:K11) -> 28 | L12: = | M12: =SUM(M4:M11) -> 28 | P12: =SUM(P4:P11) -> 104 | R12: =SUM(R4:R11) -> 133.9 | U12: Summa: | AE12: =SUM(AE4:AE11) -> 28 | AF12: = | AG12: =SUM(AG4:AG11) -> 28 | AJ12: =SUM(AJ4:AJ11) -> 104 | AL12: =SUM(AL4:AL11) -> 135.6
A14: RÖD | B14: Omgångar (0 singelmatcher släpar, ej parmatch) | R14: RÖD | S14: 2024 | U14: BLÅ | V14: Omgångar (0 singelmatcher släpar, ej parmatch) | AL14: BLÅ | AM14: 2024
A15: Omgång | B15: 1 | C15: 2 | D15: 3 | E15: 4 | F15: 5 | G15: 6 | H15: 7 | I15: 8 | J15: 9 | K15: 10 | L15: 11 | M15: 12 | N15: 13 | R15: Totalt | S15: Släpar | U15: Omgång | V15: 1 | W15: 2 | X15: 3 | Y15: 4 | Z15: 5 | AA15: 6 | AB15: 7 | AC15: 8 | AD15: 9 | AE15: 10 | AF15: 11 | AG15: 12 | AH15: 13 | AL15: Totalt | AM15: Släpar
A16: Benny | B16: 0 | C16: 3 | D16: 1.5 | E16: 3 | F16: 3 | I16: 0.5 | J16: 0.5 | K16: 3.6 | L16: 0.5 | M16: 3.5 | N16: 3.2 | R16: =SUM(B16:Q16) -> 22.3 | S16: KLAR | U16: Conta | V16: 1.6 | W16: 0.5 | X16: 1.5 | Y16: 0 | AA16: 0 | AC16: 1 | AD16: 3 | AE16: 0.4 | AF16: 3.5 | AG16: 1 | AH16: 0 | AL16: =SUM(V16:AK16) -> 12.5 | AM16: KLAR
A17: Ingvar | B17: 0 | C17: 3 | D17: 0 | E17: 3 | F17: 0.5 | G17: 3 | H17: 0 | J17: 0 | K17: 0 | M17: 3.5 | N17: 2 | R17: 15 | S17: KLAR | U17: Magnus | V17: 4 | W17: 0 | X17: 0 | AA17: 0 | AB17: 1.5 | AC17: 0 | AD17: 1 | AE17: 0 | AF17: 0.5 | AG17: 1.5 | AH17: 2.4 | AL17: 10.9 | AM17: KLAR
A18: Kalle | B18: 2 | C18: 3.5 | D18: 0 | F18: 0.5 | G18: 3.5 | H18: 3.5 | I18: 0 | K18: 0 | L18: 1 | M18: 0 | N18: 0.8 | R18: 14.8 | S18: KLAR | U18: Mats P | V18: 3.2 | W18: 3 | X18: 2.5 | Y18: 0.5 | Z18: 0 | AA18: 3.5 | AB18: 0 | AC18: 3.5 | AD18: 3 | AE18: 0 | AH18: 1.6 | AL18: 20.8 | AM18: KLAR
A19: Martin | B19: 0 | D19: 2.5 | E19: 0.5 | F19: 0 | G19: 3.5 | H19: 3.5 | I19: 3.5 | J19: 3 | K19: 4 | M19: 0 | N19: 2.8 | R19: 23.3 | S19: KLAR | U19: Micke | V19: 0.8 | W19: 0 | X19: 1 | Y19: 0 | Z19: 0.5 | AC19: 1.5 | AD19: 0.5 | AE19: 2.8 | AF19: 3 | AG19: 3.5 | AH19: 0 | AL19: 13.6 | AM19: KLAR
A20: MatsMats | B20: 0 | C20: 0 | D20: 2.5 | F20: 3.5 | H20: 3 | I20: 3 | J20: 3.5 | K20: 2 | L20: 3 | M20: 3.5 | N20: 4 | R20: 28 | S20: KLAR | U20: Morgan | V20: 2.4 | W20: 3.5 | X20: 2.5 | Z20: 3 | AB20: 3.5 | AC20: 3.5 | AD20: 0.5 | AE20: 0.8 | AF20: 3 | AG20: 0 | AH20: 0 | AL20: 22.7 | AM20: KLAR
A21: Mattias | B21: 0 | C21: 0.5 | D21: 1 | E21: 0.5 | F21: 3 | G21: 0 | I21: 2.5 | K21: 0 | L21: 0.5 | M21: 0.5 | N21: 0.4 | R21: 8.9 | S21: KLAR | U21: Myggan | V21: 3.6 | W21: 3 | X21: 1 | Y21: 3.5 | Z21: 0.5 | AA21: 3.5 | AB21: 3.5 | AC21: 0 | AD21: 1.5 | AE21: 2.4 | AH21: 0 | AL21: 22.5 | AM21: KLAR
A22: Melle | B22: 0 | C22: 0.5 | D22: 1 | E22: 3 | G22: 0 | H22: 0.5 | J22: 0.5 | K22: 0 | L22: 3 | M22: 3 | N22: 3.6 | R22: 15.1 | S22: KLAR | U22: Ove | V22: 0 | W22: 0.5 | X22: 1.5 | Y22: 3.5 | Z22: 3.5 | AA22: 3 | AB22: 1 | AE22: 3.2 | AF22: 0.5 | AG22: 0 | AH22: 0 | AL22: 16.7 | AM22: KLAR
A23: Ville | B23: 0 | D23: 1 | E23: 0.5 | G23: 0.5 | H23: 0 | I23: 0 | J23: 3 | K23: 0 | L23: 1.5 | M23: 0 | N23: 0 | R23: 6.5 | S23: KLAR | U23: Peter J | V23: 0 | W23: 3.5 | X23: 0 | Y23: 3 | Z23: 3 | AA23: 0.5 | AB23: 0 | AE23: 1.2 | AF23: 0 | AG23: 3.5 | AH23: 1.2 | AL23: 15.9 | AM23: KLAR
B24: =SUM(B16:B22) -> 2 | C24: 10.5 | D24: 8.5 | E24: 10 | F24: 10.5 | G24: 10 | H24: 10.5 | I24: 9.5 | J24: 7.5 | K24: 9.6 | L24: 8 | M24: 14 | N24: 16.8 | R24: =SUM(R16:R23) -> 133.9 | V24: =SUM(V16:V22) -> 15.6 | W24: 10.5 | X24: 10 | Y24: 7.5 | Z24: 7.5 | AA24: 10 | AB24: 9.5 | AC24: 9.5 | AD24: 9.5 | AE24: 9.6 | AF24: 10.5 | AG24: 6 | AH24: 4 | AL24: =SUM(AL16:AL23) -> 135.6
A25: Omg. klar | B25: JA | C25: JA | D25: JA | E25: JA | F25: JA | G25: JA | H25: JA | I25: JA | J25: JA | K25: JA | L25: JA | M25: JA | N25: JA | U25: Omg. klar | V25: JA | W25: JA | X25: JA | Y25: JA | Z25: JA | AA25: JA | AB25: JA | AC25: JA | AD25: JA | AE25: JA | AF25: JA | AG25: JA | AH25: JA
C28: = | D28: Slagspel - Gemensam omgång (De TVÅ bästa av totalt tre omgångar räknas, Markeras med GULT)
C30: = | D30: Parspel (en sista) | G30: Gäller ej 2023
D31: Regler parspel: Fyrboll bästboll matchspel (lagspel två och två. Varje lag väljer bästa resultatet per hål. I övrigt som Matchspel. Det lag vinner, som har fler hål upp än vad det är kvar att spela). Man spelar på sitt egna hcp och sin egen boll. 2p per spelare för det vinnande laget, 1p per spelare vid delad match. 0,5p per spelare för det lag som har bästa resultat på senast vunna hål efter 18 spelade hål.
C37: = | D37: Mixmatch (Irish greensome, två sistor)
D38: Mixregler: Irish greensome, matchspel (spel två och två. Båda spelarna slår ut från varje tee. Skillnaden är att på alla par 4 och par 5 hål slås ett slag till på partnerns boll innan man väljer vilken boll man ska spela vidare på. Spelet fortsätter sedan som Foursome). Lägg ihop era slopeslag och dela med två. Blir det ojämnt avrunda neråt. Skillnaden mellan lagen i slopehcp är de hål ena laget har ett slag extra. Vinnarna hål 1-9 får per spelare 1p, sistan 0,2p. Vinnarna hål 10-18 får per spelare 1p, sistan 0,3p. Lika resultat ger 0,5p var.

Sheet Herrtabellen 2023 (2)
A1: Herrtabellen 2023
A2: RÖD | B2: Uppdaterad 2023-10-08 (Slutlig) | R2: RÖD | S2: 2023 | U2: BLÅ | V2: Uppdaterad 2023-10-08 (Slutlig) | AL2: BLÅ | AM2: 2023
A3: Placering | B3: Namn | J3: Antal sistor + bommade | O3: Antal omgångar | R3: Poäng | S3: Totplac. | U3: Placering | V3: Namn | AD3: Antal sistor + bommade | AI3: Antal omgångar | AL3: Poäng | AM3: Totplac.
A4: 1 | B4: Magnus | K4: 6 | L4: + | M4: 3 | P4: 12 | R4: 30 | S4: 2 | U4: 1 | V4: Clabbe | AE4: 3 | AF4: + | AG4: 5 | AJ4: 12 | AL4: 31.7 | AM4: 1
A5: 2 | B5: Eddie | K5: 7 | L5: + | M5: 2 | P5: 12 | R5: 28.5 | S5: 3 | U5: 2 | V5: Kalle | AE5: 6 | AF5: + | AG5: 2 | AJ5: 12 | AL5: 22.8 | AM5: 4
A6: 3 | B6: Martin | K6: 4 | L6: + | M6: 5 | P6: 12 | R6: 21.7 | S6: 5 | U6: 3 | V6: Benny | AE6: 3 | AF6: + | AG6: 5 | AJ6: 12 | AL6: 18.4 | AM6: 6
A7: 4 | B7: Pär | K7: 8 | L7: + | M7: 1 | P7: 12 | R7: 21.2 | S7: 7 | U7: 4 | V7: Micke | AE7: 3 | AF7: + | AG7: 5 | AJ7: 12 | AL7: 18.3 | AM7: 8
A8: 5 | B8: Peter J | K8: 5 | L8: + | M8: 4 | P8: 12 | R8: 19.8 | S8: 9 | U8: 5 | V8: Christer | AE8: 5 | AF8: + | AG8: 3 | AJ8: 12 | AL8: 18.2 | AM8: 10
A9: 6 | B9: Morgan | K9: 3 | L9: + | M9: 6 | P9: 12 | R9: 19.8 | S9: 11 | U9: 6 | V9: Ville | AE9: 3 | AF9: + | AG9: 5 | AJ9: 12 | AL9: 16.3 | AM9: 12
A10: 7 | B10: Mattias | K10: 4 | L10: + | M10: 5 | P10: 12 | R10: 18.2 | S10: 13 | U10: 7 | V10: MatsMats | AE10: 5 | AF10: + | AG10: 3 | AJ10: 12 | AL10: 14.8 | AM10: 14
A11: 8 | B11: Myggan | K11: 3 | L11: + | M11: 6 | P11: 12 | R11: 16.9 | S11: 15 | U11: 8 | V11: Melle | AE11: 5 | AF11: + | AG11: 3 | AJ11: 12 | AL11: 14.8 | AM11: 16
A12: 9 | B12: Mats P | K12: 3 | L12: + | M12: 6 | P12: 12 | R12: 16.7 | S12: 17 | U12: 9 | V12: Ingvar | AE12: 3 | AF12: + | AG12: 5 | AJ12: 12 | AL12: 13.7 | AM12: 18
A13: 10 | B13: Conta | K13: 2 | L13: + | M13: 7 | P13: 12 | R13: 7 | S13: 19 | U13: 10 | V13: Peter Å | AE13: 0 | AF13: + | AG13: 0 | AJ13: 12 | AL13: 0 | AM13: 20
A14: Summa: | K14: =SUM(K4:K13) -> 45 | L14: = | M14: =SUM(M4:M13) -> 45 | P14: =SUM(P4:P13) -> 120 | R14: =SUM(R4:R13) -> 199.8 | U14: Summa: | AE14: =SUM(AE4:AE13) -> 36 | AF14: = | AG14: =SUM(AG4:AG13) -> 36 | AJ14: =SUM(AJ4:AJ13) -> 120 | AL14: =SUM(AL4:AL13) -> 169
A16: RÖD | B16: Omgångar (0 singelmatcher släpar, ej mixed) | R16: RÖD | S16: 2023 | U16: BLÅ | V16: Omgångar (0 singelmatcher släpar, ej mixed) | AL16: BLÅ | AM16: 2023
A17: Omgång | B17: 1 | C17: 2 | D17: 3 | E17: 4 | F17: 5 | G17: 6 | H17: 7 | I17: 8 | J17: 9 | K17: 10 | L17: 11 | M17: 12 | N17: 13 | R17: Totalt | S17: Släpar | U17: Omgång | V17: 1 | W17: 2 | X17: 3 | Y17: 4 | Z17: 5 | AA17: 6 | AB17: 7 | AC17: 8 | AD17: 9 | AE17: 10 | AF17: 11 | AG17: 12 | AH17: 13 | AL17: Totalt | AM17: Släpar
A18: Conta | B18: 0 | C18: 0 | D18: 0 | E18: 3.5 | F18: 0 | G18: 0 | H18: 0 | I18: 0 | J18: 0 | K18: 3.5 | L18: 0 | M18: 0 | N18: 0 | R18: =SUM(B18:Q18) -> 7 | S18: KLAR | U18: Benny | V18: 0 | W18: 1 | X18: 1 | Y18: 0 | Z18: 3 | AA18: 0.5 | AB18: 0 | AC18: 1.5 | AD18: 1.5 | AE18: 0.5 | AF18: 2.4 | AG18: 3 | AH18: 4 | AL18: =SUM(V18:AK18) -> 18.4 | AM18: KLAR
A19: Eddie | B19: 2.8 | C19: 3.5 | D19: 2.2 | E19: 0 | F19: 1.5 | G19: 3.5 | H19: 3.5 | I19: 3 | J19: 3.5 | K19: 1.5 | L19: 0 | M19: 3.5 | N19: 0 | R19: 28.5 | S19: KLAR | U19: Christer | V19: 1.6 | W19: 0 | X19: 1.8 | Y19: 1.5 | Z19: 1.5 | AA19: 0 | AB19: 3.5 | AC19: 0 | AD19: 3.5 | AE19: 0.5 | AF19: 0.8 | AG19: 3.5 | AH19: 0 | AL19: 18.2 | AM19: KLAR
A20: Magnus | B20: 0 | C20: 3.5 | D20: 1.2 | E20: 1 | F20: 3.5 | G20: 3.5 | H20: 0 | I20: 3.5 | J20: 3.5 | K20: 0 | L20: 4 | M20: 3.5 | N20: 2.8 | R20: 30 | S20: KLAR | U20: Clabbe | V20: 0 | W20: 3.5 | X20: 2.5 | Y20: 3.5 | Z20: 3 | AA20: 3 | AB20: 1.5 | AC20: 3 | AD20: 3.5 | AE20: 3 | AF20: 1.6 | AG20: 0 | AH20: 3.6 | AL20: 31.7 | AM20: KLAR
A21: Martin | B21: 4 | C21: 0 | D21: 1.3 | E21: 3.5 | F21: 3.5 | G21: 0 | H21: 3.5 | I21: 0 | J21: 3 | K21: 0 | L21: 0 | M21: 0.5 | N21: 2.4 | R21: 21.7 | S21: KLAR | U21: Ingvar | V21: 0 | W21: 0 | X21: 0.7 | Y21: 1 | Z21: 0 | AA21: 3.5 | AB21: 3.5 | AC21: 0.5 | AD21: 0 | AE21: 3 | AF21: 0 | AG21: 1.5 | AH21: 0 | AL21: 13.7 | AM21: KLAR
A22: Mats P | B22: 0 | C22: 3.5 | D22: 0 | E22: 0 | F22: 1 | G22: 0 | H22: 0 | I22: 0 | J22: 3.5 | K22: 0 | L22: 3.6 | M22: 3.5 | N22: 1.6 | R22: 16.7 | S22: KLAR | U22: Kalle | V22: 2 | W22: 3.5 | X22: 1.3 | Y22: 3.5 | Z22: 0.5 | AA22: 3.5 | AB22: 3.5 | AC22: 3 | AD22: 0 | AE22: 1.5 | AF22: 0 | AG22: 0.5 | AH22: 0 | AL22: 22.8 | AM22: KLAR
A23: Mattias | B23: 0 | C23: 3 | D23: 0 | E23: 1.5 | F23: 0 | G23: 3.5 | H23: 0 | I23: 3.5 | J23: 0 | K23: 3.5 | L23: 0 | M23: 0 | N23: 3.2 | R23: 18.2 | S23: KLAR | U23: MatsMats | V23: 3.2 | W23: 1.5 | X23: 1.2 | Y23: 1.5 | Z23: 3 | AA23: 1.5 | AB23: 0 | AC23: 1.5 | AD23: 0 | AE23: 0.5 | AF23: 0 | AG23: 0.5 | AH23: 0.4 | AL23: 14.8 | AM23: KLAR
A24: Morgan | B24: 3.6 | C24: 0 | D24: 1.5 | E24: 1 | F24: 3.5 | G24: 3.5 | H24: 0 | I24: 3.5 | J24: 0 | K24: 0 | L24: 3.2 | M24: 0 | N24: 0 | R24: 19.8 | S24: KLAR | U24: Melle | V24: 0.8 | W24: 1.5 | X24: 0 | Y24: 1 | Z24: 0.5 | AA24: 0.5 | AB24: 0 | AC24: 0.5 | AD24: 3.5 | AE24: 3 | AF24: 0 | AG24: 3.5 | AH24: 0 | AL24: 14.8 | AM24: KLAR
A25: Myggan | B25: 0 | C25: 0.5 | D25: 0 | E25: 3 | F25: 0 | G25: 0 | H25: 3.5 | I25: 0 | J25: 3.5 | K25: 1 | L25: 0.4 | M25: 3 | N25: 2 | R25: 16.9 | S25: KLAR | U25: Micke | V25: 0 | W25: 0 | X25: 0.3 | Y25: 0 | Z25: 3.5 | AA25: 3 | AB25: 3.5 | AC25: 3.5 | AD25: 1.5 | AE25: 0 | AF25: 0 | AG25: 3 | AH25: 0 | AL25: 18.3 | AM25: KLAR
A26: Peter J | B26: 2.4 | C26: 0 | D26: 2.5 | E26: 0.5 | F26: 0 | G26: 0 | H26: 3.5 | I26: 3.5 | J26: 0 | K26: 3.5 | L26: 0 | M26: 3.5 | N26: 0.4 | R26: 19.8 | S26: KLAR | U26: Peter Å | V26: 0 | AL26: 0 | AM26: Avbrutit
A27: Pär | B27: 0 | C27: 3.5 | D27: 0 | E27: 1.5 | F27: 3.5 | G27: 3.5 | H27: 3.5 | I27: 0.5 | J27: 0.5 | K27: 3.5 | L27: 1.2 | M27: 0 | N27: 0 | R27: 21.2 | S27: KLAR | U27: Ville | V27: 0 | W27: 3.5 | X27: 2.5 | Y27: 1.5 | Z27: 0.5 | AA27: 0 | AB27: 0 | AC27: 1 | AD27: 1 | AE27: 3.5 | AF27: 2.8 | AG27: 0 | AH27: 0 | AL27: 16.3 | AM27: KLAR
B28: =SUM(B18:B26) -> 12.8 | C28: 14 | D28: 8.7 | E28: 14 | F28: 13 | G28: 14 | H28: 14 | I28: 17 | J28: 17 | K28: 13 | L28: 11.2 | M28: 17.5 | N28: 12.4 | R28: =SUM(R18:R27) -> 199.8 | V28: =SUM(V18:V26) -> 7.6 | W28: 11 | X28: 8.8 | Y28: 12 | Z28: 15 | AA28: 15.5 | AB28: 15.5 | AC28: 13.5 | AD28: 13.5 | AE28: 12 | AF28: 4.8 | AG28: 15.5 | AH28: 8 | AL28: =SUM(AL18:AL27) -> 169
A29: Omg. klar | B29: JA | C29: JA | D29: JA | E29: JA | F29: JA | G29: JA | H29: JA | I29: JA | J29: JA | K29: JA | L29: JA | M29: JA | N29: JA | U29: Omg. klar | V29: JA | W29: JA | X29: JA | Y29: JA | Z29: JA | AA29: JA | AB29: JA | AC29: JA | AD29: JA | AE29: JA | AF29: JA | AG29: JA | AH29: JA
C32: = | D32: Slagspel - Gemensam omgång (De TVÅ bästa av totalt tre omgångar räknas, Markeras med GULT)
C34: = | D34: Parspel (en sista) | G34: Gäller ej 2023
D35: Regler parspel: Fyrboll bästboll matchspel (lagspel två och två. Varje lag väljer bästa resultatet per hål. I övrigt som Matchspel. Det lag vinner, som har fler hål upp än vad det är kvar att spela). Man spelar på sitt egna hcp och sin egen boll. 2p per spelare för det vinnande laget, 1p per spelare vid delad match. 0,5p per spelare för det lag som har bästa resultat på senast vunna hål efter 18 spelade hål.
C41: = | D41: Mixmatch (Irish greensome, två sistor)
D42: Mixregler: Irish greensome, matchspel (spel två och två. Båda spelarna slår ut från varje tee. Skillnaden är att på alla par 4 och par 5 hål slås ett slag till på partnerns boll innan man väljer vilken boll man ska spela vidare på. Spelet fortsätter sedan som Foursome). Lägg ihop era slopeslag och dela med två. Blir det ojämnt avrunda neråt. Skillnaden mellan lagen i slopehcp är de hål ena laget har ett slag extra. Vinnarna hål 1-9 får per spelare 1p, sistan 0,2p. Vinnarna hål 10-18 får per spelare 1p, sistan 0,3p. Lika resultat ger 0,5p var.

Sheet B-Side 2024
A1: Herrtabellen 2024
A2: RÖD | B2: Uppdaterad 2024-07-20 | R2: RÖD | S2: 2024 | U2: BLÅ | V2: Uppdaterad 2024-07-20 | AL2: BLÅ | AM2: 2024
A3: Placering | B3: Namn | J3: Antal sistor + bommade | O3: Antal omgångar | R3: Poäng | S3: Totplac. | U3: Placering | V3: Namn | AD3: Antal sistor + bommade | AI3: Antal omgångar | AL3: Poäng | AM3: Totplac.
A4: 1 | B4: Martin | K4: 1 | L4: + | M4: 1 | P4: 4 | R4: 9.3 | U4: 1 | V4: Morgan | AE4: 3 | AF4: + | AG4: 2 | AJ4: 7 | AL4: 15.9
A5: 2 | B5: MatsMats | K5: 1 | L5: + | M5: 0 | P5: 4 | R5: 6.4 | U5: 2 | V5: Mats P | AE5: 0 | AF5: + | AG5: 3 | AJ5: 5 | AL5: 11.7
A6: 3 | B6: Kalle | K6: 2 | L6: + | M6: 1 | P6: 4 | R6: 6 | U6: 3 | V6: Myggan | AE6: 2 | AF6: + | AG6: 0 | AJ6: 3 | AL6: 10.6
A7: 4 | B7: Melle | K7: 2 | L7: + | M7: 2 | P7: 7 | R7: 5 | U7: 4 | V7: Conta | AE7: 2 | AF7: + | AG7: 2 | AJ7: 7 | AL7: 7.1
A8: 5 | B8: Mattias | K8: 1 | L8: + | M8: 1 | P8: 4 | R8: 3.5 | U8: 5 | V8: Micke | AE8: 2 | AF8: + | AG8: 2 | AJ8: 7 | AL8: 5.8
A9: 6 | B9: Ingvar | K9: 0 | L9: + | M9: 2 | P9: 4 | R9: 3 | U9: 6 | V9: Peter J | AE9: 1 | AF9: + | AG9: 1 | AJ9: 3 | AL9: 4.7
A10: 7 | B10: Benny | K10: 0 | L10: + | M10: 0 | P10: 3 | R10: 1.5 | U10: 7 | V10: Magnus | AE10: 0 | AF10: + | AG10: 1 | AJ10: 4 | AL10: 4
A11: 8 | B11: Ville | K11: 0 | L11: + | M11: 0 | P11: 2 | R11: 0 | U11: 8 | V11: Ove | AE11: 2 | AF11: + | AG11: 1 | AJ11: 5 | AL11: 4
A12: Summa: | K12: =SUM(K4:K11) -> 7 | L12: = | M12: =SUM(M4:M11) -> 7 | P12: =SUM(P4:P11) -> 32 | R12: =SUM(R4:R11) -> 34.7 | U12: Summa: | AE12: =SUM(AE4:AE11) -> 12 | AF12: = | AG12: =SUM(AG4:AG11) -> 12 | AJ12: =SUM(AJ4:AJ11) -> 41 | AL12: =SUM(AL4:AL11) -> 63.8

Sheet Herrtabellen 2023
A1: Herrtabellen 2023
A2: RÖD | B2: Uppdaterad 2023-10-08 (Slutlig) | R2: RÖD | S2: 2023 | U2: BLÅ | V2: Uppdaterad 2023-10-08 (Slutlig) | AL2: BLÅ | AM2: 2023
A3: Placering | B3: Namn | J3: Antal sistor + bommade | O3: Antal omgångar | R3: Poäng | S3: Totplac. | U3: Placering | V3: Namn | AD3: Antal sistor + bommade | AI3: Antal omgångar | AL3: Poäng | AM3: Totplac.
A4: 1 | B4: Magnus | K4: 6 | L4: + | M4: 3 | P4: 12 | R4: 30 | S4: 2 | U4: 1 | V4: Clabbe | AE4: 3 | AF4: + | AG4: 5 | AJ4: 12 | AL4: 31.7 | AM4: 1
A5: 2 | B5: Eddie | K5: 7 | L5: + | M5: 2 | P5: 12 | R5: 28.5 | S5: 3 | U5: 2 | V5: Kalle | AE5: 6 | AF5: + | AG5: 2 | AJ5: 12 | AL5: 22.8 | AM5: 4
A6: 3 | B6: Martin | K6: 4 | L6: + | M6: 5 | P6: 12 | R6: 21.7 | S6: 5 | U6: 3 | V6: Benny | AE6: 3 | AF6: + | AG6: 5 | AJ6: 12 | AL6: 18.4 | AM6: 6
A7: 4 | B7: Pär | K7: 8 | L7: + | M7: 1 | P7: 12 | R7: 21.2 | S7: 7 | U7: 4 | V7: Micke | AE7: 3 | AF7: + | AG7: 5 | AJ7: 12 | AL7: 18.3 | AM7: 8
A8: 5 | B8: Peter J | K8: 5 | L8: + | M8: 4 | P8: 12 | R8: 19.8 | S8: 9 | U8: 5 | V8: Christer | AE8: 5 | AF8: + | AG8: 3 | AJ8: 12 | AL8: 18.2 | AM8: 10
A9: 6 | B9: Morgan | K9: 3 | L9: + | M9: 6 | P9: 12 | R9: 19.8 | S9: 11 | U9: 6 | V9: Ville | AE9: 3 | AF9: + | AG9: 5 | AJ9: 12 | AL9: 16.3 | AM9: 12
A10: 7 | B10: Mattias | K10: 4 | L10: + | M10: 5 | P10: 12 | R10: 18.2 | S10: 13 | U10: 7 | V10: MatsMats | AE10: 5 | AF10: + | AG10: 3 | AJ10: 12 | AL10: 14.8 | AM10: 14
A11: 8 | B11: Myggan | K11: 3 | L11: + | M11: 6 | P11: 12 | R11: 16.9 | S11: 15 | U11: 8 | V11: Melle | AE11: 5 | AF11: + | AG11: 3 | AJ11: 12 | AL11: 14.8 | AM11: 16
A12: 9 | B12: Mats P | K12: 3 | L12: + | M12: 6 | P12: 12 | R12: 16.7 | S12: 17 | U12: 9 | V12: Ingvar | AE12: 3 | AF12: + | AG12: 5 | AJ12: 12 | AL12: 13.7 | AM12: 18
A13: 10 | B13: Conta | K13: 2 | L13: + | M13: 7 | P13: 12 | R13: 7 | S13: 19 | U13: 10 | V13: Peter Å | AE13: 0 | AF13: + | AG13: 0 | AJ13: 12 | AL13: 0 | AM13: 20
A14: Summa: | K14: =SUM(K4:K13) -> 45 | L14: = | M14: =SUM(M4:M13) -> 45 | P14: =SUM(P4:P13) -> 120 | R14: =SUM(R4:R13) -> 199.8 | U14: Summa: | AE14: =SUM(AE4:AE13) -> 36 | AF14: = | AG14: =SUM(AG4:AG13) -> 36 | AJ14: =SUM(AJ4:AJ13) -> 120 | AL14: =SUM(AL4:AL13) -> 169
A16: RÖD | B16: Omgångar (0 singelmatcher släpar, ej mixed) | R16: RÖD | S16: 2023 | U16: BLÅ | V16: Omgångar (0 singelmatcher släpar, ej mixed) | AL16: BLÅ | AM16: 2023
A17: Omgång | B17: 1 | C17: 2 | D17: 3 | E17: 4 | F17: 5 | G17: 6 | H17: 7 | I17: 8 | J17: 9 | K17: 10 | L17: 11 | M17: 12 | N17: 13 | R17: Totalt | S17: Släpar | U17: Omgång | V17: 1 | W17: 2 | X17: 3 | Y17: 4 | Z17: 5 | AA17: 6 | AB17: 7 | AC17: 8 | AD17: 9 | AE17: 10 | AF17: 11 | AG17: 12 | AH17: 13 | AL17: Totalt | AM17: Släpar
A18: Conta | B18: 0 | C18: 0 | D18: 0 | E18: 3.5 | F18: 0 | G18: 0 | H18: 0 | I18: 0 | J18: 0 | K18: 3.5 | L18: 0 | M18: 0 | N18: 0 | R18: =SUM(B18:Q18) -> 7 | S18: KLAR | U18: Benny | V18: 0 | W18: 1 | X18: 1 | Y18: 0 | Z18: 3 | AA18: 0.5 | AB18: 0 | AC18: 1.5 | AD18: 1.5 | AE18: 0.5 | AF18: 2.4 | AG18: 3 | AH18: 4 | AL18: =SUM(V18:AK18) -> 18.4 | AM18: KLAR
A19: Eddie | B19: 2.8 | C19: 3.5 | D19: 2.2 | E19: 0 | F19: 1.5 | G19: 3.5 | H19: 3.5 | I19: 3 | J19: 3.5 | K19: 1.5 | L19: 0 | M19: 3.5 | N19: 0 | R19: 28.5 | S19: KLAR | U19: Christer | V19: 1.6 | W19: 0 | X19: 1.8 | Y19: 1.5 | Z19: 1.5 | AA19: 0 | AB19: 3.5 | AC19: 0 | AD19: 3.5 | AE19: 0.5 | AF19: 0.8 | AG19: 3.5 | AH19: 0 | AL19: 18.2 | AM19: KLAR
A20: Magnus | B20: 0 | C20: 3.5 | D20: 1.2 | E20: 1 | F20: 3.5 | G20: 3.5 | H20: 0 | I20: 3.5 | J20: 3.5 | K20: 0 | L20: 4 | M20: 3.5 | N20: 2.8 | R20: 30 | S20: KLAR | U20: Clabbe | V20: 0 | W20: 3.5 | X20: 2.5 | Y20: 3.5 | Z20: 3 | AA20: 3 | AB20: 1.5 | AC20: 3 | AD20: 3.5 | AE20: 3 | AF20: 1.6 | AG20: 0 | AH20: 3.6 | AL20: 31.7 | AM20: KLAR
A21: Martin | B21: 4 | C21: 0 | D21: 1.3 | E21: 3.5 | F21: 3.5 | G21: 0 | H21: 3.5 | I21: 0 | J21: 3 | K21: 0 | L21: 0 | M21: 0.5 | N21: 2.4 | R21: 21.7 | S21: KLAR | U21: Ingvar | V21: 0 | W21: 0 | X21: 0.7 | Y21: 1 | Z21: 0 | AA21: 3.5 | AB21: 3.5 | AC21: 0.5 | AD21: 0 | AE21: 3 | AF21: 0 | AG21: 1.5 | AH21: 0 | AL21: 13.7 | AM21: KLAR
A22: Mats P | B22: 0 | C22: 3.5 | D22: 0 | E22: 0 | F22: 1 | G22: 0 | H22: 0 | I22: 0 | J22: 3.5 | K22: 0 | L22: 3.6 | M22: 3.5 | N22: 1.6 | R22: 16.7 | S22: KLAR | U22: Kalle | V22: 2 | W22: 3.5 | X22: 1.3 | Y22: 3.5 | Z22: 0.5 | AA22: 3.5 | AB22: 3.5 | AC22: 3 | AD22: 0 | AE22: 1.5 | AF22: 0 | AG22: 0.5 | AH22: 0 | AL22: 22.8 | AM22: KLAR
A23: Mattias | B23: 0 | C23: 3 | D23: 0 | E23: 1.5 | F23: 0 | G23: 3.5 | H23: 0 | I23: 3.5 | J23: 0 | K23: 3.5 | L23: 0 | M23: 0 | N23: 3.2 | R23: 18.2 | S23: KLAR | U23: MatsMats | V23: 3.2 | W23: 1.5 | X23: 1.2 | Y23: 1.5 | Z23: 3 | AA23: 1.5 | AB23: 0 | AC23: 1.5 | AD23: 0 | AE23: 0.5 | AF23: 0 | AG23: 0.5 | AH23: 0.4 | AL23: 14.8 | AM23: KLAR
A24: Morgan | B24: 3.6 | C24: 0 | D24: 1.5 | E24: 1 | F24: 3.5 | G24: 3.5 | H24: 0 | I24: 3.5 | J24: 0 | K24: 0 | L24: 3.2 | M24: 0 | N24: 0 | R24: 19.8 | S24: KLAR | U24: Melle | V24: 0.8 | W24: 1.5 | X24: 0 | Y24: 1 | Z24: 0.5 | AA24: 0.5 | AB24: 0 | AC24: 0.5 | AD24: 3.5 | AE24: 3 | AF24: 0 | AG24: 3.5 | AH24: 0 | AL24: 14.8 | AM24: KLAR
A25: Myggan | B25: 0 | C25: 0.5 | D25: 0 | E25: 3 | F25: 0 | G25: 0 | H25: 3.5 | I25: 0 | J25: 3.5 | K25: 1 | L25: 0.4 | M25: 3 | N25: 2 | R25: 16.9 | S25: KLAR | U25: Micke | V25: 0 | W25: 0 | X25: 0.3 | Y25: 0 | Z25: 3.5 | AA25: 3 | AB25: 3.5 | AC25: 3.5 | AD25: 1.5 | AE25: 0 | AF25: 0 | AG25: 3 | AH25: 0 | AL25: 18.3 | AM25: KLAR
A26: Peter J | B26: 2.4 | C26: 0 | D26: 2.5 | E26: 0.5 | F26: 0 | G26: 0 | H26: 3.5 | I26: 3.5 | J26: 0 | K26: 3.5 | L26: 0 | M26: 3.5 | N26: 0.4 | R26: 19.8 | S26: KLAR | U26: Peter Å | V26: 0 | AL26: 0 | AM26: Avbrutit
A27: Pär | B27: 0 | C27: 3.5 | D27: 0 | E27: 1.5 | F27: 3.5 | G27: 3.5 | H27: 3.5 | I27: 0.5 | J27: 0.5 | K27: 3.5 | L27: 1.2 | M27: 0 | N27: 0 | R27: 21.2 | S27: KLAR | U27: Ville | V27: 0 | W27: 3.5 | X27: 2.5 | Y27: 1.5 | Z27: 0.5 | AA27: 0 | AB27: 0 | AC27: 1 | AD27: 1 | AE27: 3.5 | AF27: 2.8 | AG27: 0 | AH27: 0 | AL27: 16.3 | AM27: KLAR
B28: =SUM(B18:B26) -> 12.8 | C28: 14 | D28: 8.7 | E28: 14 | F28: 13 | G28: 14 | H28: 14 | I28: 17 | J28: 17 | K28: 13 | L28: 11.2 | M28: 17.5 | N28: 12.4 | R28: =SUM(R18:R27) -> 199.8 | V28: =SUM(V18:V26) -> 7.6 | W28: 11 | X28: 8.8 | Y28: 12 | Z28: 15 | AA28: 15.5 | AB28: 15.5 | AC28: 13.5 | AD28: 13.5 | AE28: 12 | AF28: 4.8 | AG28: 15.5 | AH28: 8 | AL28: =SUM(AL18:AL27) -> 169
A29: Omg. klar | B29: JA | C29: JA | D29: JA | E29: JA | F29: JA | G29: JA | H29: JA | I29: JA | J29: JA | K29: JA | L29: JA | M29: JA | N29: JA | U29: Omg. klar | V29: JA | W29: JA | X29: JA | Y29: JA | Z29: JA | AA29: JA | AB29: JA | AC29: JA | AD29: JA | AE29: JA | AF29: JA | AG29: JA | AH29: JA
C32: = | D32: Slagspel - Gemensam omgång (De TVÅ bästa av totalt tre omgångar räknas, Markeras med GULT)
C34: = | D34: Parspel (en sista) | G34: Gäller ej 2023
D35: Regler parspel: Fyrboll bästboll matchspel (lagspel två och två. Varje lag väljer bästa resultatet per hål. I övrigt som Matchspel. Det lag vinner, som har fler hål upp än vad det är kvar att spela). Man spelar på sitt egna hcp och sin egen boll. 2p per spelare för det vinnande laget, 1p per spelare vid delad match. 0,5p per spelare för det lag som har bästa resultat på senast vunna hål efter 18 spelade hål.
C41: = | D41: Mixmatch (Irish greensome, två sistor)
D42: Mixregler: Irish greensome, matchspel (spel två och två. Båda spelarna slår ut från varje tee. Skillnaden är att på alla par 4 och par 5 hål slås ett slag till på partnerns boll innan man väljer vilken boll man ska spela vidare på. Spelet fortsätter sedan som Foursome). Lägg ihop era slopeslag och dela med två. Blir det ojämnt avrunda neråt. Skillnaden mellan lagen i slopehcp är de hål ena laget har ett slag extra. Vinnarna hål 1-9 får per spelare 1p, sistan 0,2p. Vinnarna hål 10-18 får per spelare 1p, sistan 0,3p. Lika resultat ger 0,5p var.

Sheet Herrtabellen 2023 (Utan Pär)
A1: Herrtabellen 2023
A2: RÖD | B2: Uppdaterad 2023-10-08 (Slutlig, utan Pär) | R2: RÖD | S2: 2023 | U2: BLÅ | V2: Uppdaterad 2023-10-08 (Slutlig, utan Pär) | AL2: BLÅ | AM2: 2023
A3: Placering | B3: Namn | J3: Antal sistor + bommade | O3: Antal omgångar | R3: Poäng | S3: Totplac. | U3: Placering | V3: Namn | AD3: Antal sistor + bommade | AI3: Antal omgångar | AL3: Poäng | AM3: Totplac.
A4: 1 | B4: Magnus | K4: 6 | L4: + | M4: 3 | P4: 12 | R4: 30 | S4: 2 | U4: 1 | V4: Clabbe | AE4: 3 | AF4: + | AG4: 5 | AJ4: 12 | AL4: 31.7 | AM4: 1
A5: 2 | B5: Eddie | K5: 7 | L5: + | M5: 2 | P5: 12 | R5: 28.5 | S5: 3 | U5: 2 | V5: Kalle | AE5: 6 | AF5: + | AG5: 2 | AJ5: 12 | AL5: 22.8 | AM5: 4
A6: 3 | B6: Martin | K6: 4 | L6: + | M6: 5 | P6: 12 | R6: 21.7 | S6: 5 | U6: 3 | V6: Benny | AE6: 3 | AF6: + | AG6: 5 | AJ6: 12 | AL6: 18.4 | AM6: 6
A7: 4 | B7: Pär | K7: 8 | L7: + | M7: 1 | P7: 12 | R7: 21.2 | U7: 4 | V7: Micke | AE7: 3 | AF7: + | AG7: 5 | AJ7: 12 | AL7: 18.3 | AM7: 7
A8: 5 | B8: Peter J | K8: 5 | L8: + | M8: 4 | P8: 12 | R8: 19.8 | S8: 8 | U8: 5 | V8: Christer | AE8: 5 | AF8: + | AG8: 3 | AJ8: 12 | AL8: 18.2 | AM8: 9
A9: 6 | B9: Morgan | K9: 3 | L9: + | M9: 6 | P9: 12 | R9: 19.8 | S9: 10 | U9: 6 | V9: Ville | AE9: 3 | AF9: + | AG9: 5 | AJ9: 12 | AL9: 16.3 | AM9: 11
A10: 7 | B10: Mattias | K10: 4 | L10: + | M10: 5 | P10: 12 | R10: 18.2 | S10: 12 | U10: 7 | V10: MatsMats | AE10: 5 | AF10: + | AG10: 3 | AJ10: 12 | AL10: 14.8 | AM10: 13
A11: 8 | B11: Myggan | K11: 3 | L11: + | M11: 6 | P11: 12 | R11: 16.9 | S11: 14 | U11: 8 | V11: Melle | AE11: 5 | AF11: + | AG11: 3 | AJ11: 12 | AL11: 14.8 | AM11: 15
A12: 9 | B12: Mats P | K12: 3 | L12: + | M12: 6 | P12: 12 | R12: 16.7 | S12: 16 | U12: 9 | V12: Ingvar | AE12: 3 | AF12: + | AG12: 5 | AJ12: 12 | AL12: 13.7 | AM12: 17
A13: 10 | B13: Conta | K13: 2 | L13: + | M13: 7 | P13: 12 | R13: 7 | S13: 18 | U13: 10 | V13: Peter Å | AE13: 0 | AF13: + | AG13: 0 | AJ13: 12 | AL13: 0 | AM13: 19
A14: Summa: | K14: =SUM(K4:K13) -> 45 | L14: = | M14: =SUM(M4:M13) -> 45 | P14: =SUM(P4:P13) -> 120 | R14: =SUM(R4:R13) -> 199.8 | U14: Summa: | AE14: =SUM(AE4:AE13) -> 36 | AF14: = | AG14: =SUM(AG4:AG13) -> 36 | AJ14: =SUM(AJ4:AJ13) -> 120 | AL14: =SUM(AL4:AL13) -> 169
A16: RÖD | B16: Omgångar (0 singelmatcher släpar, ej mixed) | R16: RÖD | S16: 2023 | U16: BLÅ | V16: Omgångar (0 singelmatcher släpar, ej mixed) | AL16: BLÅ | AM16: 2023
A17: Omgång | B17: 1 | C17: 2 | D17: 3 | E17: 4 | F17: 5 | G17: 6 | H17: 7 | I17: 8 | J17: 9 | K17: 10 | L17: 11 | M17: 12 | N17: 13 | R17: Totalt | S17: Släpar | U17: Omgång | V17: 1 | W17: 2 | X17: 3 | Y17: 4 | Z17: 5 | AA17: 6 | AB17: 7 | AC17: 8 | AD17: 9 | AE17: 10 | AF17: 11 | AG17: 12 | AH17: 13 | AL17: Totalt | AM17: Släpar
A18: Conta | B18: 0 | C18: 0 | D18: 0 | E18: 3.5 | F18: 0 | G18: 0 | H18: 0 | I18: 0 | J18: 0 | K18: 3.5 | L18: 0 | M18: 0 | N18: 0 | R18: =SUM(B18:Q18) -> 7 | S18: KLAR | U18: Benny | V18: 0 | W18: 1 | X18: 1 | Y18: 0 | Z18: 3 | AA18: 0.5 | AB18: 0 | AC18: 1.5 | AD18: 1.5 | AE18: 0.5 | AF18: 2.4 | AG18: 3 | AH18: 4 | AL18: =SUM(V18:AK18) -> 18.4 | AM18: KLAR
A19: Eddie | B19: 2.8 | C19: 3.5 | D19: 2.2 | E19: 0 | F19: 1.5 | G19: 3.5 | H19: 3.5 | I19: 3 | J19: 3.5 | K19: 1.5 | L19: 0 | M19: 3.5 | N19: 0 | R19: 28.5 | S19: KLAR | U19: Christer | V19: 1.6 | W19: 0 | X19: 1.8 | Y19: 1.5 | Z19: 1.5 | AA19: 0 | AB19: 3.5 | AC19: 0 | AD19: 3.5 | AE19: 0.5 | AF19: 0.8 | AG19: 3.5 | AH19: 0 | AL19: 18.2 | AM19: KLAR
A20: Magnus | B20: 0 | C20: 3.5 | D20: 1.2 | E20: 1 | F20: 3.5 | G20: 3.5 | H20: 0 | I20: 3.5 | J20: 3.5 | K20: 0 | L20: 4 | M20: 3.5 | N20: 2.8 | R20: 30 | S20: KLAR | U20: Clabbe | V20: 0 | W20: 3.5 | X20: 2.5 | Y20: 3.5 | Z20: 3 | AA20: 3 | AB20: 1.5 | AC20: 3 | AD20: 3.5 | AE20: 3 | AF20: 1.6 | AG20: 0 | AH20: 3.6 | AL20: 31.7 | AM20: KLAR
A21: Martin | B21: 4 | C21: 0 | D21: 1.3 | E21: 3.5 | F21: 3.5 | G21: 0 | H21: 3.5 | I21: 0 | J21: 3 | K21: 0 | L21: 0 | M21: 0.5 | N21: 2.4 | R21: 21.7 | S21: KLAR | U21: Ingvar | V21: 0 | W21: 0 | X21: 0.7 | Y21: 1 | Z21: 0 | AA21: 3.5 | AB21: 3.5 | AC21: 0.5 | AD21: 0 | AE21: 3 | AF21: 0 | AG21: 1.5 | AH21: 0 | AL21: 13.7 | AM21: KLAR
A22: Mats P | B22: 0 | C22: 3.5 | D22: 0 | E22: 0 | F22: 1 | G22: 0 | H22: 0 | I22: 0 | J22: 3.5 | K22: 0 | L22: 3.6 | M22: 3.5 | N22: 1.6 | R22: 16.7 | S22: KLAR | U22: Kalle | V22: 2 | W22: 3.5 | X22: 1.3 | Y22: 3.5 | Z22: 0.5 | AA22: 3.5 | AB22: 3.5 | AC22: 3 | AD22: 0 | AE22: 1.5 | AF22: 0 | AG22: 0.5 | AH22: 0 | AL22: 22.8 | AM22: KLAR
A23: Mattias | B23: 0 | C23: 3 | D23: 0 | E23: 1.5 | F23: 0 | G23: 3.5 | H23: 0 | I23: 3.5 | J23: 0 | K23: 3.5 | L23: 0 | M23: 0 | N23: 3.2 | R23: 18.2 | S23: KLAR | U23: MatsMats | V23: 3.2 | W23: 1.5 | X23: 1.2 | Y23: 1.5 | Z23: 3 | AA23: 1.5 | AB23: 0 | AC23: 1.5 | AD23: 0 | AE23: 0.5 | AF23: 0 | AG23: 0.5 | AH23: 0.4 | AL23: 14.8 | AM23: KLAR
A24: Morgan | B24: 3.6 | C24: 0 | D24: 1.5 | E24: 1 | F24: 3.5 | G24: 3.5 | H24: 0 | I24: 3.5 | J24: 0 | K24: 0 | L24: 3.2 | M24: 0 | N24: 0 | R24: 19.8 | S24: KLAR | U24: Melle | V24: 0.8 | W24: 1.5 | X24: 0 | Y24: 1 | Z24: 0.5 | AA24: 0.5 | AB24: 0 | AC24: 0.5 | AD24: 3.5 | AE24: 3 | AF24: 0 | AG24: 3.5 | AH24: 0 | AL24: 14.8 | AM24: KLAR
A25: Myggan | B25: 0 | C25: 0.5 | D25: 0 | E25: 3 | F25: 0 | G25: 0 | H25: 3.5 | I25: 0 | J25: 3.5 | K25: 1 | L25: 0.4 | M25: 3 | N25: 2 | R25: 16.9 | S25: KLAR | U25: Micke | V25: 0 | W25: 0 | X25: 0.3 | Y25: 0 | Z25: 3.5 | AA25: 3 | AB25: 3.5 | AC25: 3.5 | AD25: 1.5 | AE25: 0 | AF25: 0 | AG25: 3 | AH25: 0 | AL25: 18.3 | AM25: KLAR
A26: Peter J | B26: 2.4 | C26: 0 | D26: 2.5 | E26: 0.5 | F26: 0 | G26: 0 | H26: 3.5 | I26: 3.5 | J26: 0 | K26: 3.5 | L26: 0 | M26: 3.5 | N26: 0.4 | R26: 19.8 | S26: KLAR | U26: Peter Å | V26: 0 | AL26: 0 | AM26: Avbrutit
A27: Pär | B27: 0 | C27: 3.5 | D27: 0 | E27: 1.5 | F27: 3.5 | G27: 3.5 | H27: 3.5 | I27: 0.5 | J27: 0.5 | K27: 3.5 | L27: 1.2 | M27: 0 | N27: 0 | R27: 21.2 | S27: KLAR | U27: Ville | V27: 0 | W27: 3.5 | X27: 2.5 | Y27: 1.5 | Z27: 0.5 | AA27: 0 | AB27: 0 | AC27: 1 | AD27: 1 | AE27: 3.5 | AF27: 2.8 | AG27: 0 | AH27: 0 | AL27: 16.3 | AM27: KLAR
B28: =SUM(B18:B26) -> 12.8 | C28: 14 | D28: 8.7 | E28: 14 | F28: 13 | G28: 14 | H28: 14 | I28: 17 | J28: 17 | K28: 13 | L28: 11.2 | M28: 17.5 | N28: 12.4 | R28: =SUM(R18:R27) -> 199.8 | V28: =SUM(V18:V26) -> 7.6 | W28: 11 | X28: 8.8 | Y28: 12 | Z28: 15 | AA28: 15.5 | AB28: 15.5 | AC28: 13.5 | AD28: 13.5 | AE28: 12 | AF28: 4.8 | AG28: 15.5 | AH28: 8 | AL28: =SUM(AL18:AL27) -> 169
A29: Omg. klar | B29: JA | C29: JA | D29: JA | E29: JA | F29: JA | G29: JA | H29: JA | I29: JA | J29: JA | K29: JA | L29: JA | M29: JA | N29: JA | U29: Omg. klar | V29: JA | W29: JA | X29: JA | Y29: JA | Z29: JA | AA29: JA | AB29: JA | AC29: JA | AD29: JA | AE29: JA | AF29: JA | AG29: JA | AH29: JA
C32: = | D32: Slagspel - Gemensam omgång (De TVÅ bästa av totalt tre omgångar räknas, Markeras med GULT)
C34: = | D34: Parspel (en sista) | G34: Gäller ej 2023
D35: Regler parspel: Fyrboll bästboll matchspel (lagspel två och två. Varje lag väljer bästa resultatet per hål. I övrigt som Matchspel. Det lag vinner, som har fler hål upp än vad det är kvar att spela). Man spelar på sitt egna hcp och sin egen boll. 2p per spelare för det vinnande laget, 1p per spelare vid delad match. 0,5p per spelare för det lag som har bästa resultat på senast vunna hål efter 18 spelade hål.
C41: = | D41: Mixmatch (Irish greensome, två sistor)
D42: Mixregler: Irish greensome, matchspel (spel två och två. Båda spelarna slår ut från varje tee. Skillnaden är att på alla par 4 och par 5 hål slås ett slag till på partnerns boll innan man väljer vilken boll man ska spela vidare på. Spelet fortsätter sedan som Foursome). Lägg ihop era slopeslag och dela med två. Blir det ojämnt avrunda neråt. Skillnaden mellan lagen i slopehcp är de hål ena laget har ett slag extra. Vinnarna hål 1-9 får per spelare 1p, sistan 0,2p. Vinnarna hål 10-18 får per spelare 1p, sistan 0,3p. Lika resultat ger 0,5p var.

Sheet Herrtabellen 2023 (Alt. vers)
A1: Herrtabellen 2023
A2: RÖD | B2: Uppdaterad 2023-10-08 | R2: RÖD | S2: 2023 | U2: BLÅ | V2: Uppdaterad 2023-10-08 | AL2: BLÅ | AM2: 2023
A3: Placering | B3: Namn | J3: Antal sistor + bommade | O3: Antal omgångar | R3: Poäng | S3: Totplac. | U3: Placering | V3: Namn | AD3: Antal sistor + bommade | AI3: Antal omgångar | AL3: Poäng | AM3: Totplac.
A4: 1 | B4: Magnus | K4: 6 | L4: + | M4: 3 | P4: 12 | R4: 30 | S4: 2 | U4: 1 | V4: Clabbe | AE4: 3 | AF4: + | AG4: 5 | AJ4: 12 | AL4: 33.7 | AM4: 1
A5: 2 | B5: Eddie | K5: 7 | L5: + | M5: 2 | P5: 12 | R5: 28.5 | S5: 3 | U5: 2 | V5: Kalle | AE5: 6 | AF5: + | AG5: 2 | AJ5: 12 | AL5: 24.8 | AM5: 4
A6: 3 | B6: Martin | K6: 4 | L6: + | M6: 5 | P6: 12 | R6: 21.7 | S6: 5 | U6: 3 | V6: Benny | AE6: 3 | AF6: + | AG6: 5 | AJ6: 12 | AL6: 20.4 | AM6: 6
A7: 4 | B7: Pär | K7: 8 | L7: + | M7: 1 | P7: 12 | R7: 21.2 | S7: 7 | U7: 4 | V7: Micke | AE7: 3 | AF7: + | AG7: 5 | AJ7: 12 | AL7: 20.3 | AM7: 8
A8: 5 | B8: Peter J | K8: 5 | L8: + | M8: 4 | P8: 12 | R8: 19.8 | S8: 10 | U8: 5 | V8: Christer | AE8: 5 | AF8: + | AG8: 3 | AJ8: 12 | AL8: 20.2 | AM8: 9
A9: 6 | B9: Morgan | K9: 3 | L9: + | M9: 6 | P9: 12 | R9: 19.8 | S9: 11 | U9: 6 | V9: Ville | AE9: 3 | AF9: + | AG9: 5 | AJ9: 12 | AL9: 18.3 | AM9: 12
A10: 7 | B10: Mattias | K10: 4 | L10: + | M10: 5 | P10: 12 | R10: 18.2 | S10: 13 | U10: 7 | V10: MatsMats | AE10: 5 | AF10: + | AG10: 3 | AJ10: 12 | AL10: 16.8 | AM10: 14
A11: 8 | B11: Myggan | K11: 3 | L11: + | M11: 6 | P11: 12 | R11: 16.9 | S11: 15 | U11: 8 | V11: Melle | AE11: 5 | AF11: + | AG11: 3 | AJ11: 12 | AL11: 16.8 | AM11: 16
A12: 9 | B12: Mats P | K12: 3 | L12: + | M12: 6 | P12: 12 | R12: 16.7 | S12: 17 | U12: 9 | V12: Ingvar | AE12: 3 | AF12: + | AG12: 5 | AJ12: 12 | AL12: 15.7 | AM12: 18
A13: 10 | B13: Conta | K13: 2 | L13: + | M13: 7 | P13: 12 | R13: 7 | S13: 19 | U13: 10 | V13: Peter Å | AE13: 0 | AF13: + | AG13: 0 | AJ13: 12 | AL13: 0 | AM13: 20
A14: Summa: | K14: =SUM(K4:K13) -> 45 | L14: = | M14: =SUM(M4:M13) -> 45 | P14: =SUM(P4:P13) -> 120 | R14: =SUM(R4:R13) -> 199.8 | U14: Summa: | AE14: =SUM(AE4:AE13) -> 36 | AF14: = | AG14: =SUM(AG4:AG13) -> 36 | AJ14: =SUM(AJ4:AJ13) -> 120 | AL14: =SUM(AL4:AL13) -> 187
A16: RÖD | B16: Omgångar (0 singelmatcher släpar, ej mixed) | R16: RÖD | S16: 2023 | U16: BLÅ | V16: Omgångar (0 singelmatcher släpar, ej mixed) | AL16: BLÅ | AM16: 2023
A17: Omgång | B17: 1 | C17: 2 | D17: 3 | E17: 4 | F17: 5 | G17: 6 | H17: 7 | I17: 8 | J17: 9 | K17: 10 | L17: 11 | M17: 12 | N17: 13 | O17: Gem omg | R17: Totalt | S17: Släpar | U17: Omgång | V17: 1 | W17: 2 | X17: 3 | Y17: 4 | Z17: 5 | AA17: 6 | AB17: 7 | AC17: 8 | AD17: 9 | AE17: 10 | AF17: 11 | AG17: 12 | AH17: 13 | AI17: Gem omg | AL17: Totalt | AM17: Släpar
A18: Conta | B18: 0 | C18: 0 | D18: 0 | E18: 3.5 | F18: 0 | G18: 0 | H18: 0 | I18: 0 | J18: 0 | K18: 3.5 | L18: 0 | M18: 0 | N18: 0 | O18: =B28 -> 12.8 | P18: =L28 -> 11.2 | Q18: =N28 -> 12.4 | R18: =SUM(B18:N18) -> 7 | S18: KLAR | U18: Benny | V18: 0 | W18: 1 | X18: 1 | Y18: 0 | Z18: 3 | AA18: 0.5 | AB18: 0 | AC18: 3.5 | AD18: 1.5 | AE18: 0.5 | AF18: 2.4 | AG18: 3 | AH18: 4 | AI18: =V28 -> 7.6 | AJ18: =AF28 -> 4.8 | AK18: =AH28 -> 8 | AL18: =SUM(V18:AH18) -> 20.4 | AM18: KLAR
A19: Eddie | B19: 2.8 | C19: 3.5 | D19: 2.2 | E19: 0 | F19: 1.5 | G19: 3.5 | H19: 3.5 | I19: 3 | J19: 3.5 | K19: 1.5 | L19: 0 | M19: 3.5 | N19: 0 | R19: =SUM(B19:N19) -> 28.5 | S19: KLAR | U19: Christer | V19: 1.6 | W19: 0 | X19: 1.8 | Y19: 1.5 | Z19: 3.5 | AA19: 0 | AB19: 3.5 | AC19: 0 | AD19: 3.5 | AE19: 0.5 | AF19: 0.8 | AG19: 3.5 | AH19: 0 | AL19: =SUM(V19:AH19) -> 20.2 | AM19: KLAR
A20: Magnus | B20: 0 | C20: 3.5 | D20: 1.2 | E20: 1 | F20: 3.5 | G20: 3.5 | H20: 0 | I20: 3.5 | J20: 3.5 | K20: 0 | L20: 4 | M20: 3.5 | N20: 2.8 | O20: =O18+P18+Q18 -> 36.4 | R20: 30 | S20: KLAR | U20: Clabbe | V20: 0 | W20: 3.5 | X20: 2.5 | Y20: 3.5 | Z20: 3 | AA20: 3 | AB20: 3.5 | AC20: 3 | AD20: 3.5 | AE20: 3 | AF20: 1.6 | AG20: 0 | AH20: 3.6 | AI20: =AI18+AJ18+AK18 -> 20.4 | AL20: 33.7 | AM20: KLAR
A21: Martin | B21: 4 | C21: 0 | D21: 1.3 | E21: 3.5 | F21: 3.5 | G21: 0 | H21: 3.5 | I21: 0 | J21: 3 | K21: 0 | L21: 0 | M21: 0.5 | N21: 2.4 | R21: 21.7 | S21: KLAR | U21: Ingvar | V21: 0 | W21: 0 | X21: 0.7 | Y21: 1 | Z21: 0 | AA21: 3.5 | AB21: 3.5 | AC21: 0.5 | AD21: 0 | AE21: 3 | AF21: 0 | AG21: 3.5 | AH21: 0 | AI21: 36.4 | AK21: 20.4 | AL21: 15.7 | AM21: KLAR
A22: Mats P | B22: 0 | C22: 3.5 | D22: 0 | E22: 0 | F22: 1 | G22: 0 | H22: 0 | I22: 0 | J22: 3.5 | K22: 0 | L22: 3.6 | M22: 3.5 | N22: 1.6 | R22: 16.7 | S22: KLAR | U22: Kalle | V22: 2 | W22: 3.5 | X22: 1.3 | Y22: 3.5 | Z22: 0.5 | AA22: 3.5 | AB22: 3.5 | AC22: 3 | AD22: 0 | AE22: 3.5 | AF22: 0 | AG22: 0.5 | AH22: 0 | AI22: =O20-AI20 -> 16 | AL22: 24.8 | AM22: KLAR
A23: Mattias | B23: 0 | C23: 3 | D23: 0 | E23: 1.5 | F23: 0 | G23: 3.5 | H23: 0 | I23: 3.5 | J23: 0 | K23: 3.5 | L23: 0 | M23: 0 | N23: 3.2 | R23: 18.2 | S23: KLAR | U23: MatsMats | V23: 3.2 | W23: 1.5 | X23: 1.2 | Y23: 1.5 | Z23: 3 | AA23: 3.5 | AB23: 0 | AC23: 1.5 | AD23: 0 | AE23: 0.5 | AF23: 0 | AG23: 0.5 | AH23: 0.4 | AI23: 199.8 | AK23: 187 | AL23: 16.8 | AM23: KLAR
A24: Morgan | B24: 3.6 | C24: 0 | D24: 1.5 | E24: 1 | F24: 3.5 | G24: 3.5 | H24: 0 | I24: 3.5 | J24: 0 | K24: 0 | L24: 3.2 | M24: 0 | N24: 0 | R24: 19.8 | S24: KLAR | U24: Melle | V24: 0.8 | W24: 3.5 | X24: 0 | Y24: 1 | Z24: 0.5 | AA24: 0.5 | AB24: 0 | AC24: 0.5 | AD24: 3.5 | AE24: 3 | AF24: 0 | AG24: 3.5 | AH24: 0 | AI24: =R14-AL14 -> 12.8 | AL24: 16.8 | AM24: KLAR
A25: Myggan | B25: 0 | C25: 0.5 | D25: 0 | E25: 3 | F25: 0 | G25: 0 | H25: 3.5 | I25: 0 | J25: 3.5 | K25: 1 | L25: 0.4 | M25: 3 | N25: 2 | R25: 16.9 | S25: KLAR | U25: Micke | V25: 0 | W25: 0 | X25: 0.3 | Y25: 0 | Z25: 3.5 | AA25: 3 | AB25: 3.5 | AC25: 3.5 | AD25: 3.5 | AE25: 0 | AF25: 0 | AG25: 3 | AH25: 0 | AI25: 16 | AK25: 12.8 | AL25: 20.3 | AM25: KLAR
A26: Peter J | B26: 2.4 | C26: 0 | D26: 2.5 | E26: 0.5 | F26: 0 | G26: 0 | H26: 3.5 | I26: 3.5 | J26: 0 | K26: 3.5 | L26: 0 | M26: 3.5 | N26: 0.4 | R26: 19.8 | S26: KLAR | U26: Peter Å | V26: 0 | AI26: =AI25-AK25 -> 3.2 | AL26: 0 | AM26: Avbrutit
A27: Pär | B27: 0 | C27: 3.5 | D27: 0 | E27: 1.5 | F27: 3.5 | G27: 3.5 | H27: 3.5 | I27: 0.5 | J27: 0.5 | K27: 3.5 | L27: 1.2 | M27: 0 | N27: 0 | O27: 4 st oavgjorda | R27: 21.2 | S27: KLAR | U27: Ville | V27: 0 | W27: 3.5 | X27: 2.5 | Y27: 3.5 | Z27: 0.5 | AA27: 0 | AB27: 0 | AC27: 1 | AD27: 1 | AE27: 3.5 | AF27: 2.8 | AG27: 0 | AH27: 0 | AI27: 5 st oavgjorda | AL27: 18.3 | AM27: KLAR
B28: =SUM(B18:B26) -> 12.8 | C28: 14 | D28: 8.7 | E28: 14 | F28: 13 | G28: 14 | H28: 14 | I28: 17 | J28: 17 | K28: 13 | L28: 11.2 | M28: 17.5 | N28: 12.4 | R28: =SUM(R18:R27) -> 199.8 | V28: =SUM(V18:V26) -> 7.6 | W28: 13 | X28: 8.8 | Y28: 12 | Z28: 17 | AA28: 17.5 | AB28: 17.5 | AC28: 15.5 | AD28: 15.5 | AE28: 14 | AF28: 4.8 | AG28: 17.5 | AH28: 8 | AL28: =SUM(AL18:AL27) -> 187
A29: Omg. klar | B29: JA | C29: JA | D29: JA | E29: JA | F29: JA | G29: JA | H29: JA | I29: JA | J29: JA | K29: JA | L29: JA | M29: JA | N29: JA | U29: Omg. klar | V29: JA | W29: JA | X29: JA | Y29: JA | Z29: JA | AA29: JA | AB29: JA | AC29: JA | AD29: JA | AE29: JA | AF29: JA | AG29: JA | AH29: JA
C32: = | D32: Slagspel - Gemensam omgång (De TVÅ bästa av totalt tre omgångar räknas, Markeras med GULT)
C34: = | D34: Parspel (en sista) | G34: Gäller ej 2023
D35: Regler parspel: Fyrboll bästboll matchspel (lagspel två och två. Varje lag väljer bästa resultatet per hål. I övrigt som Matchspel. Det lag vinner, som har fler hål upp än vad det är kvar att spela). Man spelar på sitt egna hcp och sin egen boll. 2p per spelare för det vinnande laget, 1p per spelare vid delad match. 0,5p per spelare för det lag som har bästa resultat på senast vunna hål efter 18 spelade hål.
C41: = | D41: Mixmatch (Irish greensome, två sistor)
D42: Mixregler: Irish greensome, matchspel (spel två och två. Båda spelarna slår ut från varje tee. Skillnaden är att på alla par 4 och par 5 hål slås ett slag till på partnerns boll innan man väljer vilken boll man ska spela vidare på. Spelet fortsätter sedan som Foursome). Lägg ihop era slopeslag och dela med två. Blir det ojämnt avrunda neråt. Skillnaden mellan lagen i slopehcp är de hål ena laget har ett slag extra. Vinnarna hål 1-9 får per spelare 1p, sistan 0,2p. Vinnarna hål 10-18 får per spelare 1p, sistan 0,3p. Lika resultat ger 0,5p var.

Sheet B-side 2022
A1: Herrtabellen 2023 B-side
A2: RÖD | B2: Uppdaterad 2022-05-06 | R2: RÖD | S2: 2022 | U2: BLÅ | V2: Uppdaterad 2022-05-06 | AL2: BLÅ | AM2: 2022
A3: Placering | B3: Namn | J3: Antal sistor + bommade | O3: Antal omgångar | R3: Poäng | S3: Totplac. | U3: Placering | V3: Namn | AD3: Antal sistor + bommade | AI3: Antal omgångar | AL3: Poäng | AM3: Totplac.

Sheet Slutspelsgrupper 2023
A1: Herrtabellen 2023 - Slutställning
A3: SLUTSPELSGRUPPER 2023
A4: 1 | B4: Grupp 1 | J4: 1 | K4: 2023 | M4: 2 | N4: Grupp 2 | V4: 2 | W4: 2023 | Z4: BOLLAR - DAG 1 (Spanien)
B5: Namn | K5: Totplac. | N5: Namn | W5: Totplac. | Z5: BOLL 1 | AB5: BOLL 2 | AD5: BOLL 3 | AF5: BOLL 4 | AH5: BOLL 5
A6: 1 | B6: Clabbe | K6: 1 | M6: 1 | N6: Benny | W6: 6
A7: 2 | B7: Magnus | K7: 2 | M7: 2 | N7: Micke | W7: 7
A8: 3 | B8: Eddie | K8: 3 | M8: 3 | N8: Peter J | W8: 8
A9: 4 | B9: Kalle | K9: 4 | M9: 4 | N9: Christer | W9: 9
A10: 5 | B10: Martin | K10: 5 | M10: 5 | N10: Morgan | W10: 10
A12: 3 | B12: Grupp 3 | J12: 3 | K12: 2023 | M12: 4 | N12: Grupp 4 | V12: 4 | W12: 2023 | Z12: BOLLAR - DAG 2 (Spanien)
B13: Namn | K13: Totplac. | N13: Namn | W13: Totplac. | Z13: BOLL 1 | AB13: BOLL 2 | AD13: BOLL 3 | AF13: BOLL 4 | AH13: BOLL 5
A14: 1 | B14: Ville | K14: 11 | M14: 1 | N14: Mats P | W14: 16
A15: 2 | B15: Mattias | K15: 12 | M15: 2 | N15: Ingvar | W15: 17
A16: 3 | B16: MatsMats | K16: 13 | M16: 3 | N16: Conta | W16: 18
A17: 4 | B17: Myggan | K17: 14 | M17: 4 | N17: Peter Å | W17: 19
A18: 5 | B18: Melle | K18: 15 | M18: 5 | N18: Ronnie / KåGe | W18: 20

Sheet Slutspel dag 1o2 2023
A1: Slutspel Spanien 2023
A2: STÄLLNING
A3: Namn | B3: Fredag | C3: Extra grunds | D3: Total | E3: Placering | G3: Lördag | I3: Tutti | J3: Placering | L3: Namn | M3: Tot poäng | N3: Placering
A4: Benny | D4: =SUM(B4:C4) -> 0 | I4: =B4+G4 -> 0 | N4: 1
A5: Christer | D5: =SUM(B5:C5) -> 0 | I5: 0 | N5: 2
A6: Conta | D6: 0 | I6: 0 | N6: 3
A7: Ingvar | D7: 0 | I7: 0 | N7: 4
A8: Mats P | D8: 0 | I8: 0 | N8: 6
A9: MatsMats | D9: 0 | I9: 0 | N9: 7
A10: Mattias | D10: 0 | I10: 0 | N10: 8
A11: Melle | D11: 0 | I11: 0 | N11: 9
A12: Micke | D12: 0 | I12: 0 | N12: 10
A13: Morgan | D13: 0 | I13: 0 | N13: 11
A14: Myggan | D14: 0 | I14: 0 | N14: 12
A15: Ove | D15: 0 | I15: 0 | N15: 13
A16: Peter J | D16: 0 | I16: 0 | N16: 14
A17: Peter Å | D17: 0 | I17: 0 | N17: 15
A18: Pillen | D18: 0 | I18: 0 | N18: 16
A19: Ville | D19: 0 | I19: 0 | N19: 17
A20: Robin | D20: =SUM(B20:C20) -> 0 | I20: 0 | N20: 18
A21: Nicke | D21: 0 | I21: 0 | N21: 19
I22: 0 | N22: 20

Sheet Slutspel söndag 22
C2: SPANIEN - "SÖNDAGSTÄVLING" 2023
C4: Spelarpar Söndag | E4: Kostnad | F4: Ägare | G4: Poäng | H4: Placering
B6: FF_1
B8: FF_2
B10: 1
B12: 2
B14: 3
B16: 4
B18: 5
B20: 6
B22: 7
B24: 8
D26: Tutti | E26: =SUM(E5:E24) -> 0

Sheet Sutspel 2021
A1: Herrtabellen 2023 - Slutspel - Matchresultat (Skall uppdateras senare)
A3: SLUTSPELSMATCHER | W3: SLUTSPEL 2023 | AE3: SÖNDAGSTÄVLING
A4: FREDAG | L4: LÖRDAG
A5: 1 | B5: Boll 1 | J5: 1 | L5: 1 | M5: Boll 1 | U5: 1 | AE5: Spelarpar Söndag | AG5: Poäng | AH5: Placering
A6: Hål | B6: Match | I6: Resultat | J6: Poäng | L6: Hål | M6: Match | T6: Resultat | U6: Poäng | W6: BOLLAR - FREDAG | AE6: X | AF6: Y
A7: 1-6 | E7: - | I7: - | L7: 1-6 | P7: - | T7: - | W7: BOLL 1 | X7: BOLL 2 | Y7: BOLL 3 | Z7: BOLL 4 | AA7: BOLL 5 | AB7: Grupp | AE7: X | AF7: Y
A8: 1-6 | E8: - | I8: - | L8: 1-6 | P8: - | T8: - | AB8: 1
A9: 7-12 | E9: - | I9: - | L9: 7-12 | P9: - | T9: - | AB9: 2
A10: 7-12 | E10: - | I10: - | L10: 7-12 | P10: - | T10: - | AB10: 3 | AE10: X | AF10: Y
A11: 13-18 | E11: - | I11: - | L11: 13-18 | P11: - | T11: - | AB11: 4
A12: 13-18 | E12: - | I12: - | L12: 13-18 | P12: - | T12: - | AE12: X | AF12: Y
A14: 2 | B14: Boll 2 | J14: 2 | L14: 2 | M14: Boll 2 | U14: 2 | AE14: X | AF14: Y
A15: Hål | B15: Match | I15: Resultat | J15: Poäng | L15: Hål | M15: Match | T15: Resultat | U15: Poäng | W15: BOLLAR - LÖRDAG
A16: 1-6 | E16: - | I16: - | L16: 1-6 | P16: - | T16: - | W16: BOLL 1 | X16: BOLL 2 | Y16: BOLL 3 | Z16: BOLL 4 | AA16: BOLL 5 | AB16: Grupp | AE16: X | AF16: Y
A17: 1-6 | E17: - | I17: - | L17: 1-6 | P17: - | T17: - | AB17: 1
A18: 7-12 | E18: - | I18: - | L18: 7-12 | P18: - | T18: - | AB18: 2 | AE18: X | AF18: Y
A19: 7-12 | E19: - | I19: - | L19: 7-12 | P19: - | T19: - | AB19: 3
A20: 13-18 | E20: - | I20: - | L20: 13-18 | P20: - | T20: - | AB20: 4 | AE20: X | AF20: Y
A21: 13-18 | E21: - | I21: - | L21: 13-18 | P21: - | T21: -
AE22: X | AF22: Y
A23: 3 | B23: Boll 3 | J23: 3 | L23: 3 | M23: Boll 3 | U23: 3 | W23: SPANIEN 2023
A24: Hål | B24: Match | I24: Resultat | J24: Poäng | L24: Hål | M24: Match | T24: Resultat | U24: Poäng | W24: STÄLLNING | AE24: X | AF24: Y
A25: 1-6 | E25: - | I25: - | L25: 1-6 | P25: - | T25: - | W25: Fredag | X25: Poäng | Y25: Lördag | Z25: Poäng | AA25: Tutti | AB25: Tot poäng | AC25: Placering
A26: 1-6 | E26: - | I26: - | L26: 1-6 | P26: - | T26: - | AC26: 1
A27: 7-12 | E27: - | I27: - | L27: 7-12 | P27: - | T27: - | AC27: 2
A28: 7-12 | E28: - | I28: - | L28: 7-12 | P28: - | T28: - | AC28: 3
A29: 13-18 | E29: - | I29: - | L29: 13-18 | P29: - | T29: - | AC29: 4
A30: 13-18 | E30: - | I30: - | L30: 13-18 | P30: - | T30: - | AC30: 5
AC31: 6
A32: 4 | B32: Boll 4 | J32: 4 | L32: 4 | M32: Boll 4 | U32: 4 | AC32: 7
A33: Hål | B33: Match | I33: Resultat | J33: Poäng | L33: Hål | M33: Match | T33: Resultat | U33: Poäng | AC33: 8
A34: 1-6 | E34: - | I34: - | L34: 1-6 | P34: - | T34: - | AC34: 9
A35: 1-6 | E35: - | I35: - | L35: 1-6 | P35: - | T35: - | AC35: 10
A36: 7-12 | E36: - | I36: - | L36: 7-12 | P36: - | T36: - | AC36: 11
A37: 7-12 | E37: - | I37: - | L37: 7-12 | P37: - | T37: - | AC37: 12
A38: 13-18 | E38: - | I38: - | L38: 13-18 | P38: - | T38: - | AC38: 13
A39: 13-18 | E39: - | I39: - | L39: 13-18 | P39: - | T39: - | AC39: 14
AC40: 15
A41: 5 | B41: Boll 5 | J41: 5 | L41: 5 | M41: Boll 5 | U41: 5 | AC41: 16
A42: Hål | B42: Match | I42: Resultat | J42: Poäng | L42: Hål | M42: Match | T42: Resultat | U42: Poäng | AC42: 17
A43: 1-6 | E43: - | I43: - | L43: 1-6 | P43: - | T43: - | AC43: 18
A44: 1-6 | E44: - | I44: - | L44: 1-6 | P44: - | T44: - | AC44: 19
A45: 7-12 | E45: - | I45: - | L45: 7-12 | P45: - | T45: - | AC45: 20
A46: 7-12 | E46: - | I46: - | L46: 7-12 | P46: - | T46: -
A47: 13-18 | E47: - | I47: - | L47: 13-18 | P47: - | T47: -
A48: 13-18 | E48: - | I48: - | L48: 13-18 | P48: - | T48: -

Sheet Herrtabellen 2022
A1: Herrtabellen 2022 - Slutlig
A2: RÖD | B2: Uppdaterad 2022-09-18 (Slutlig) | R2: RÖD | S2: 2022 | U2: BLÅ | V2: Uppdaterad 2022-09-18 (Slutlig) | AL2: BLÅ | AM2: 2022
A3: Placering | B3: Namn | J3: Antal sistor + bommade | O3: Antal omgångar | R3: Poäng | S3: Totplac. | U3: Placering | V3: Namn | AD3: Antal sistor + bommade | AI3: Antal omgångar | AL3: Poäng | AM3: Totplac.
A4: 1 | B4: Mattias | K4: 5 | L4: + | M4: 3 | P4: 14 | R4: 27.3 | S4: 2 | U4: 1 | V4: Pillen | AE4: 2 | AF4: + | AG4: 6 | AJ4: 14 | AL4: 29.7 | AM4: 1
A5: 2 | B5: Peter Å | K5: 4 | L5: + | M5: 3 | P5: 14 | R5: 25.7 | S5: 3 | U5: 2 | V5: Mats P | AE5: 6 | AF5: + | AG5: 2 | AJ5: 14 | AL5: 23.3 | AM5: 4
A6: 3 | B6: Micke | K6: 4 | L6: + | M6: 4 | P6: 14 | R6: 25.2 | S6: 5 | U6: 3 | V6: Myggan | AE6: 4 | AF6: + | AG6: 4 | AJ6: 14 | AL6: 23 | AM6: 6
A7: 4 | B7: MatsMats | K7: 5 | L7: + | M7: 3 | P7: 14 | R7: 22.3 | S7: 7 | U7: 4 | V7: Peter J | AE7: 4 | AF7: + | AG7: 4 | AJ7: 14 | AL7: 17.4 | AM7: 8
A8: 5 | B8: Christer | K8: 4 | L8: + | M8: 4 | P8: 14 | R8: 17.1 | S8: 10 | U8: 5 | V8: Morgan | AE8: 3 | AF8: + | AG8: 5 | AJ8: 14 | AL8: 17.2 | AM8: 9
A9: 6 | B9: Ville | K9: 6 | L9: + | M9: 2 | P9: 14 | R9: 17 | S9: 12 | U9: 6 | V9: Kalle | AE9: 2 | AF9: + | AG9: 6 | AJ9: 14 | AL9: 17.1 | AM9: 11
A10: 7 | B10: Melle | K10: 3 | L10: + | M10: 5 | P10: 14 | R10: 16.3 | S10: 14 | U10: 7 | V10: Benny | AE10: 4 | AF10: + | AG10: 4 | AJ10: 14 | AL10: 16.9 | AM10: 13
A11: 8 | B11: Conta | K11: 1 | L11: + | M11: 6 | P11: 14 | R11: 12.5 | S11: 16 | U11: 8 | V11: Ove | AE11: 7 | AF11: + | AG11: 1 | AJ11: 14 | AL11: 16.6 | AM11: 15
A12: 9 | B12: Magnus | K12: 3 | L12: + | M12: 5 | P12: 14 | R12: 11.4 | S12: 18 | U12: 9 | V12: Ingvar | AE12: 4 | AF12: + | AG12: 4 | AJ12: 14 | AL12: 14.2 | AM12: 17
S13: - | AM13: -
A14: Summa: | K14: =SUM(K4:K13) -> 35 | L14: = | M14: =SUM(M4:M13) -> 35 | P14: =SUM(P4:P13) -> 126 | R14: =SUM(R4:R13) -> 174.8 | U14: Summa: | AE14: =SUM(AE4:AE13) -> 36 | AF14: = | AG14: =SUM(AG4:AG13) -> 36 | AJ14: =SUM(AJ4:AJ13) -> 126 | AL14: =SUM(AL4:AL13) -> 175.4
A16: RÖD | B16: Omgångar (0 singelmatcher släpar) | R16: RÖD | U16: BLÅ | V16: Omgångar (0 singelmatcher släpar) | AL16: BLÅ
A17: Omgång | B17: 1 | C17: 2 | D17: 3 | E17: 4 | F17: 5 | G17: 6 | H17: 7 | I17: 8 | J17: 9 | K17: 10 | L17: 11 | M17: 12 | N17: 13 | O17: 14 | R17: Totalt | U17: Omgång | V17: 1 | W17: 2 | X17: 3 | Y17: 4 | Z17: 5 | AA17: 6 | AB17: 7 | AC17: 8 | AD17: 9 | AE17: 10 | AF17: 11 | AG17: 12 | AH17: 13 | AI17: 14 | AL17: Totalt
A18: Christer | B18: 0 | C18: 3.5 | D18: 0.5 | E18: 0.5 | F18: 0 | G18: 0 | H18: 2 | I18: 3.5 | J18: 3 | K18: 0 | L18: 2.8 | M18: 0.5 | O18: 0.8 | R18: =SUM(B18:Q18) -> 17.1 | U18: Benny | V18: 0 | W18: 0.5 | X18: 1.5 | Y18: 3.5 | Z18: 0.5 | AA18: 1 | AB18: 0 | AC18: 0 | AD18: 3.5 | AF18: 4 | AG18: 0 | AH18: 0 | AI18: 2.4 | AL18: =SUM(V18:AK18) -> 16.9
A19: Conta | B19: 1.2 | C19: 0 | D19: 1.5 | E19: 0 | G19: 0.5 | H19: 2.5 | I19: 3 | J19: 0 | K19: 0 | L19: 0 | M19: 0 | N19: 1 | O19: 2.8 | R19: 12.5 | U19: Ingvar | V19: 3.2 | W19: 0 | X19: 1 | Y19: 3 | Z19: 1 | AA19: 1.5 | AB19: 0 | AC19: 3 | AE19: 0.5 | AF19: 0 | AG19: 0.5 | AH19: 0.5 | AI19: 0 | AL19: 14.2
A20: Magnus | B20: 0.4 | D20: 0 | E20: 0 | F20: 0.5 | G20: 1 | H20: 2.5 | I20: 0.5 | J20: 3 | K20: 0 | L20: 0 | M20: 3 | N20: 0.5 | O20: 0 | R20: 11.4 | U20: Kalle | V20: 2.4 | W20: 0 | X20: 1.3 | Y20: 0 | Z20: 1.5 | AA20: 0 | AB20: 2 | AC20: 1.5 | AD20: 3 | AE20: 0 | AF20: 2.4 | AG20: 3 | AI20: 0 | AL20: 17.1
A21: MatsMats | B21: 4 | C21: 3.5 | D21: 1.2 | E21: 0.5 | F21: 0.5 | G21: 3 | H21: 0 | I21: 3.5 | J21: 0.5 | K21: 1 | L21: 0 | N21: 3 | O21: 1.6 | R21: 22.3 | U21: Pillen | V21: 0 | W21: 3 | X21: 1.5 | Y21: 3 | Z21: 3 | AA21: 3.5 | AB21: 0 | AD21: 3 | AE21: 3.5 | AF21: 0 | AG21: 3 | AH21: 3 | AI21: 3.2 | AL21: 29.7
A22: Mattias | B22: 0 | C22: 3.5 | D22: 0.7 | E22: 3.5 | F22: 3 | H22: 2.5 | I22: 0 | J22: 3 | K22: 3.5 | L22: 1.6 | M22: 3.5 | N22: 0.5 | O22: 2 | R22: 27.3 | U22: Mats P | V22: 2 | W22: 3.5 | X22: 2 | Y22: 0.5 | AA22: 1 | AB22: 2.5 | AC22: 3.5 | AD22: 0.5 | AE22: 3 | AF22: 0.8 | AG22: 3.5 | AH22: 0.5 | AI22: 0 | AL22: 23.3
A23: Melle | B23: 1.6 | C23: 0 | D23: 0.7 | E23: 3 | F23: 0 | G23: 3.5 | H23: 0.5 | I23: 0 | J23: 0.5 | L23: 0 | M23: 3.5 | N23: 3 | O23: 0 | R23: 16.3 | U23: Morgan | V23: 0 | X23: 2.2 | Y23: 3.5 | Z23: 0.5 | AA23: 0 | AB23: 0.5 | AC23: 0 | AD23: 0 | AE23: 3 | AF23: 0 | AG23: 0.5 | AH23: 3 | AI23: 4 | AL23: 17.2
A24: Micke | B24: 0 | C24: 0 | D24: 1 | E24: 3.5 | F24: 3.5 | G24: 0 | H24: 0 | I24: 3 | K24: 3.5 | L24: 3.6 | M24: 0 | N24: 3.5 | O24: 3.6 | R24: 25.2 | U24: Myggan | V24: 0 | W24: 3 | X24: 2.5 | Z24: 3 | AA24: 3.5 | AB24: 2.5 | AC24: 0.5 | AD24: 3.5 | AE24: 1 | AF24: 0 | AG24: 0.5 | AH24: 3 | AI24: 0 | AL24: 23
A25: Peter Å | B25: 0 | C25: 0 | D25: 0.3 | E25: 3 | F25: 3.5 | G25: 1.5 | H25: 2.5 | J25: 3.5 | K25: 3.5 | L25: 3.2 | M25: 3.5 | N25: 0 | O25: 1.2 | R25: 25.7 | U25: Ove | V25: 0 | W25: 3.5 | X25: 1.8 | Y25: 0.5 | Z25: 0 | AA25: 1.5 | AB25: 2.5 | AC25: 3.5 | AD25: 0.5 | AE25: 1.5 | AF25: 0.4 | AH25: 0.5 | AI25: 0.4 | AL25: 16.6
A26: Ville | B26: 0 | C26: 3.5 | D26: 1 | F26: 3 | G26: 3.5 | H26: 0 | I26: 0.5 | J26: 0.5 | K26: 1.5 | L26: 2 | M26: 0 | N26: 1.5 | O26: 0 | R26: 17 | U26: Peter J | V26: 3.6 | W26: 0.5 | X26: 1.8 | Y26: 0 | Z26: 3.5 | AB26: 0 | AC26: 1 | AD26: 0 | AE26: 0.5 | AF26: 0 | AG26: 3 | AH26: 3.5 | AI26: 0 | AL26: 17.4
B27: =SUM(B18:B26) -> 7.2 | C27: 14 | D27: 6.9 | E27: 14 | F27: 14 | G27: 13 | H27: 12.5 | I27: 14 | J27: 14 | K27: 13 | L27: 13.2 | M27: 14 | N27: 13 | O27: 12 | R27: =SUM(R18:R26) -> 174.8 | V27: =SUM(V18:V26) -> 11.2 | W27: 14 | X27: 15.6 | Y27: 14 | Z27: 13 | AA27: 12 | AB27: 10 | AC27: 13 | AD27: 14 | AE27: 13 | AF27: 7.6 | AG27: 14 | AH27: 14 | AI27: 10 | AL27: =SUM(AL18:AL26) -> 175.4
A28: Omg. klar | B28: JA | C28: JA | D28: JA | E28: JA | F28: JA | G28: JA | H28: JA | I28: JA | J28: JA | K28: JA | L28: JA | M28: JA | N28: JA | O28: JA | U28: Omg. klar | V28: JA | W28: JA | X28: JA | Y28: JA | Z28: JA | AA28: JA | AB28: JA | AC28: JA | AD28: JA | AE28: JA | AF28: JA | AG28: JA | AH28: JA | AI28: JA
C31: = | D31: Slagspel - Gemensam omgång (De TVÅ bästa av totalt tre omgångar räknas, Markeras med GULT)
C33: = | D33: Parspel (en sista)
D34: Regler parspel: Fyrboll bästboll matchspel (lagspel två och två. Varje lag väljer bästa resultatet per hål. I övrigt som Matchspel. Det lag vinner, som har fler hål upp än vad det är kvar att spela). Man spelar på sitt egna hcp och sin egen boll. 2p per spelare för det vinnande laget, 1p per spelare vid delad match. 0,5p per spelare för det lag som har bästa resultat på senast vunna hål efter 18 spelade hål.
C40: = | D40: Mixmatch (Irish greensome, två sistor)
D41: Mixregler: Irish greensome, matchspel (spel två och två. Båda spelarna slår ut från varje tee. Skillnaden är att på alla par 4 och par 5 hål slås ett slag till på partnerns boll innan man väljer vilken boll man ska spela vidare på. Spelet fortsätter sedan som Foursome). Lägg ihop era slopeslag och dela med två. Blir det ojämnt avrunda neråt. Skillnaden mellan lagen i slopehcp är de hål ena laget har ett slag extra. Vinnarna hål 1-9 får per spelare 1p, sistan 0,2p. Vinnarna hål 10-18 får per spelare 1p, sistan 0,3p. Lika resultat ger 0,5p var.
